[Event "FIDE World Rapid-ch Open 2018"]
[White "Guimaraes, Diogo Duarte"]
[Black "Perdomo, Carlos Andres"]
[Site "St. Petersburg"]
[Round "11.98"]
[Annotator "NA"]
[Result "0-1"]
[Date "2018.12.28"]
[WhiteElo "2278"]
[BlackElo "2301"]
[PlyCount "162"]
[TimeControl "900+10"]

1. e4 {[%emt 0:0:0]} c5 {[%emt 0:0:0]} 2. Nf3 {[%emt 0:0:0]} e6 {[%emt 0:0:0]} 3. g3 {[%emt 0:0:0]} b6 {[%emt 0:0:22]} 4. Bg2 {[%emt 0:0:2]} Bb7 {[%emt 0:0:1]} 5. d3 {[%emt 0:0:3]} Nf6 {[%emt 0:0:58]} 6. 0-0 {[%emt 0:0:0]} d5 {[%emt 0:0:4]} 7. Nc3 {[%emt 0:2:3]} dxe4 {[%emt 0:0:31]} 8. Ng5 {[%emt 0:0:2]} Nc6 {[%emt 0:0:20]} 9. Ngxe4 {[%emt 0:0:16]} Be7 {[%emt 0:1:7]
} 10. Bf4 {[%emt 0:0:36]} 0-0 {[%emt 0:2:6]} 11. Re1 {[%emt 0:0:0]} Nxe4 {[%emt 0:0:52]} 12. Bxe4 {[%emt 0:0:11]} Qd7 {[%emt 0:0:38]} 13. Rc1 {[%emt 0:3:53]} Rad8 {[%emt 0:1:10]} 14. Be3 {[%emt 0:0:13]} Bf6 {[%emt 0:0:51]
} 15. Qf3 {[%emt 0:0:46]} Bxc3 {[%emt 0:1:34]} 16. bxc3 {[%emt 0:0:1]
} Ne5 {[%emt 0:0:8]} 17. Qh1 {[%emt 0:2:4]} Bxe4 {[%emt 0:0:0]} 18. Qxe4 {[%emt 0:0:2]} Ng6 {[%emt 0:0:43]} 19. Bg5 {[%emt 0:0:17]} f6 {[%emt 0:0:38]} 20. Bd2 {[%emt 0:0:16]} e5 {[%emt 0:0:31]} 21. f4 {[%emt 0:0:0]} exf4 {[%emt 0:1:35]} 22. Bxf4 {[%emt 0:0:3]} Kh8 {[%emt 0:0:7]} 23. Qe6 {[%emt 0:1:43]} Qa4 {[%emt 0:0:22]} 24. Re4 {[%emt 0:0:20]} Qb5 {[%emt 0:0:27]
} 25. Qb3 {[%emt 0:0:30]} Qc6 {[%emt 0:0:1]} 26. Rce1 {[%emt 0:0:37]
} Rd5 {[%emt 0:1:13]} 27. Re6 {[%emt 0:0:36]} Qd7 {[%emt 0:0:0]} 28. R6e4 {[%emt 0:1:44]} Rf5 {[%emt 0:0:21]} 29. Qc4 {[%emt 0:1:7]} h5 {[%emt 0:0:22]} 30. Re6 {[%emt 0:0:24]} h4 {[%emt 0:0:50]} 31. Qe4 {[%emt 0:0:0]} Qd5 {[%emt 0:0:4]} 32. Bd6 {[%emt 0:0:19]} Rd8 {[%emt 0:0:11]} 33. c4 {[%emt 0:0:51]} Qxe4 {[%emt 0:0:5]} 34. R1xe4 {[%emt 0:0:9]} hxg3 {[%emt 0:0:9]
} 35. hxg3 {[%emt 0:0:6]} Kh7 {[%emt 0:0:10]} 36. Kg2 {[%emt 0:0:2]
} Rg5 {[%emt 0:0:3]} 37. Kf3 {[%emt 0:0:7]} Rh5 {[%emt 0:0:0]} 38. Kg2 {[%emt 0:0:10]} Rg5 {[%emt 0:0:11]} 39. a4 {[%emt 0:0:12]} Rd7 {[%emt 0:0:6]} 40. Bb8 {[%emt 0:0:13]} Kg8 {[%emt 0:0:8]} 41. Re8+ {[%emt 0:0:5]
} Kf7 {[%emt 0:0:1]} 42. Rc8 {[%emt 0:0:9]} Rh5 {[%emt 0:0:0]} 43. Rc7 {[%emt 0:0:5]} Rxc7 44. Bxc7 {[%emt 0:0:0]} Rh8 {[%emt 0:0:0]} 45. a5 {[%emt 0:0:6]} bxa5 {[%emt 0:0:6]} 46. Bxa5 {[%emt 0:0:4]} Rb8 {[%emt 0:0:5]} 47. Bc3 {[%emt 0:0:2]} Rb1 {[%emt 0:0:5]} 48. d4 {[%emt 0:0:12]
} Rc1 {[%emt 0:0:9]} 49. Re2 {[%emt 0:0:2]} cxd4 {[%emt 0:0:0]} 50. Bxd4 {[%emt 0:0:1]} a5 {[%emt 0:0:2]} 51. c3 {[%emt 0:0:2]} Ne7 {[%emt 0:0:18]} 52. Rb2 {[%emt 0:0:5]} Nc6 {[%emt 0:0:1]} 53. Rb7+ {[%emt 0:0:3]
} Kg6 {[%emt 0:0:4]} 54. c5 {[%emt 0:0:8]} a4 {[%emt 0:0:16]
} 55. Rb6 {[%emt 0:0:8]} Nxd4 {[%emt 0:0:9]} 56. cxd4 {[%emt 0:0:0]} Rc4 {[%emt 0:0:1]} 57. Rd6 {[%emt 0:0:47]} a3 {[%emt 0:0:6]} 58. Ra6 {[%emt 0:0:0]} Rxd4 {[%emt 0:0:16]} 59. Rxa3 {[%emt 0:0:1]} Rc4 {[%emt 0:0:1]} 60. Ra5 {[%emt 0:0:2]} Kf5 {[%emt 0:0:6]} 61. Kf3 {[%emt 0:0:7]} Rc3+ {[%emt 0:0:2]
} 62. Kf2 {[%emt 0:0:1]} g5 {[%emt 0:0:10]} 63. c6+ {[%emt 0:0:0]} Kg4 {[%emt 0:0:3]} 64. Ra4+ {[%emt 0:0:4]} Kh3 {[%emt 0:0:2]} 65. Ra6 {[%emt 0:0:13]} Rc2+ {[%emt 0:0:30]} 66. Kf3 {[%emt 0:0:57]} f5 {[%emt 0:0:29]
} 67. c7 {[%emt 0:0:33]} Rc3+ {[%emt 0:0:1]} 68. Kf2 {[%emt 0:0:0]} Rxc7 {[%emt 0:0:2]} 69. Ra5 {[%emt 0:0:18]} Rc2+ {[%emt 0:0:4]} 70. Kf1 {[%emt 0:0:0]} Kg4 {[%emt 0:0:7]} 71. Rb5 {[%emt 0:0:6]} Rc3 {[%emt 0:0:2]
} 72. Kf2 {[%emt 0:0:9]} Rf3+ {[%emt 0:0:1]} 73. Kg2 {[%emt 0:0:3]
} Rxg3+ {[%emt 0:0:1]} 74. Kf2 {[%emt 0:0:0]} f4 {[%emt 0:0:0]} 75. Rc5 {[%emt 0:0:1]} Ra3 {[%emt 0:0:2]} 76. Rb5 {[%emt 0:0:2]} Ra2+ {[%emt 0:0:1]} 77. Kf1 {[%emt 0:0:0]} Kh4 {[%emt 0:0:4]} 78. Rf5 {[%emt 0:0:3]
} Ra4 {[%emt 0:0:8]} 79. Kg2 {[%emt 0:0:3]} g4 {[%emt 0:0:0]} 80. Rf8 {[%emt 0:0:3]} Ra2+ {[%emt 0:0:2]} 81. Kf1 {[%emt 0:0:1]} Kg3 {[%emt 0:0:2]} 0-1

[Event "FIDE World Rapid-ch Open 2018"]
[White "Ahmed Hassan Abdillahi"]
[Black "Al Thebaiti, Ahmed M"]
[Site "St. Petersburg"]
[Round "11.99"]
[Annotator "NA"]
[Result "0-1"]
[Date "2018.12.28"]
[WhiteElo "1570"]
[BlackElo "1976"]
[PlyCount "68"]
[TimeControl "900+10"]

1. d4 {[%emt 0:0:0]} d5 {[%emt 0:0:0]} 2. c4 {[%emt 0:0:0]} dxc4 {[%emt 0:0:0]
} 3. Nc3 {[%emt 0:0:1]} a6 {[%emt 0:0:0]} 4. a4 {[%emt 0:0:0]} Nc6 {[%emt 0:0:0]} 5. e3 {[%emt 0:0:22]} Na5 {[%emt 0:0:0]} 6. Nf3 {[%emt 0:0:12]
} Nf6 {[%emt 0:0:2]} 7. Be2 {[%emt 0:0:2]} g6 {[%emt 0:0:5]
} 8. Ne5 {[%emt 0:0:2]} Be6 {[%emt 0:0:2]} 9. 0-0 {[%emt 0:0:4]} Bg7 {[%emt 0:0:1]
} 10. f4 {[%emt 0:0:4]} 0-0 {[%emt 0:0:19]} 11. Bd2 {[%emt 0:0:0]} c6 {[%emt 0:0:4]} 12. Qc2 {[%emt 0:0:4]} Qc7 {[%emt 0:1:49]} 13. Ne4 {[%emt 0:0:49]} Bf5 {[%emt 0:1:0]} 14. Nxf6+ {[%emt 0:0:6]} exf6 {[%emt 0:0:2]
} 15. e4 {[%emt 0:0:4]} fxe5 {[%emt 0:0:6]} 16. exf5 {[%emt 0:0:4]
} exd4 {[%emt 0:0:22]} 17. Bxc4 {[%emt 0:0:29]} Nxc4 {[%emt 0:0:0]} 18. Qxc4 {[%emt 0:0:3]} b5 {[%emt 0:0:54]} 19. axb5 {[%emt 0:0:10]} axb5 {[%emt 0:0:1]} 20. Qd3 {[%emt 0:0:17]} Rfe8 {[%emt 0:0:43]} 21. fxg6 {[%emt 0:0:19]
} hxg6 {[%emt 0:0:29]} 22. f5 {[%emt 0:0:2]} Rxa1 {[%emt 0:0:0]} 23. Rxa1 {[%emt 0:0:6]} Qd6 {[%emt 0:2:0]} 24. Rf1 {[%emt 0:0:4]} Be5 {[%emt 0:0:43]} 25. h4 {[%emt 0:0:53]} Kg7 {[%emt 0:1:37]} 26. Qf3 {[%emt 0:0:20]
} Rh8 {[%emt 0:0:21]} 27. Bg5 {[%emt 0:0:12]} f6 {[%emt 0:0:0]} 28. fxg6 {[%emt 0:0:38]} d3 {[%emt 0:0:58]} 29. Rd1 {[%emt 0:1:38]} fxg5 {[%emt 0:0:59]} 30. Qf7+ {[%emt 0:0:52]} Kh6 {[%emt 0:0:6]} 31. hxg5+ {[%emt 0:0:13]} Kxg5 {[%emt 0:0:30]} 32. g7 {[%emt 0:0:24]} Qd4+ {[%emt 0:0:0]} 33. Qf2 {[%emt 0:0:37]} Bxg7 {[%emt 0:0:21]} 34. g3 {[%emt 0:1:8]} Rh1+ {[%emt 0:0:14]} 0-1

[Event "FIDE World Rapid-ch Open 2018"]
[White "Alsulaymi, Abdullah M"]
[Black "khayat, Abdullah F"]
[Site "St. Petersburg"]
[Round "11.100"]
[Annotator "NA"]
[Result "0-1"]
[Date "2018.12.28"]
[WhiteElo "1833"]
[BlackElo "1723"]
[PlyCount "110"]
[TimeControl "900+10"]

1. e4 {[%emt 0:0:0]} d5 {[%emt 0:0:0]} 2. exd5 {[%emt 0:0:0]} Nf6 {[%emt 0:0:0]
} 3. d4 {[%emt 0:0:0]} Nxd5 {[%emt 0:0:1]} 4. Nf3 {[%emt 0:0:0]} Bg4 {[%emt 0:0:4]} 5. Be2 {[%emt 0:0:2]} e6 {[%emt 0:0:3]} 6. 0-0 {[%emt 0:0:6]} Be7 {[%emt 0:0:11]} 7. c4 {[%emt 0:0:2]} Nf6 {[%emt 0:0:0]} 8. Nc3 {[%emt 0:0:23]} 0-0 {[%emt 0:0:8]} 9. Be3 {[%emt 0:0:5]} Bb4 {[%emt 0:0:19]
} 10. Qb3 {[%emt 0:0:17]} Bxc3 {[%emt 0:0:9]} 11. bxc3 {[%emt 0:0:2]
} b6 {[%emt 0:0:6]} 12. Bg5 {[%emt 0:0:25]} h6 {[%emt 0:0:10]
} 13. Bh4 {[%emt 0:0:4]} Nbd7 {[%emt 0:0:26]} 14. Rae1 {[%emt 0:0:20]} Rc8 {[%emt 0:1:23]} 15. h3 {[%emt 0:0:12]} g5 {[%emt 0:0:7]} 16. Bg3 {[%emt 0:0:0]} Bh5 {[%emt 0:0:14]} 17. Ne5 {[%emt 0:1:19]} Bxe2 {[%emt 0:2:19]} 18. Rxe2 {[%emt 0:0:2]} Nh5 {[%emt 0:0:27]} 19. Nc6 {[%emt 0:1:18]} Qe8 {[%emt 0:3:17]
} 20. Nxa7 {[%emt 0:0:5]} Nxg3 {[%emt 0:0:36]} 21. fxg3 {[%emt 0:0:6]
} Ra8 {[%emt 0:0:32]} 22. Nb5 {[%emt 0:0:3]} Qd8 {[%emt 0:0:0]} 23. Ref2 {[%emt 0:0:27]} f5 {[%emt 0:2:45]} 24. c5 {[%emt 0:0:2]} Rf6 {[%emt 0:1:44]} 25. c6 {[%emt 0:0:30]} Nf8 {[%emt 0:0:24]} 26. Rxf5 {[%emt 0:0:34]
} Rxf5 {[%emt 0:0:18]} 27. Rxf5 {[%emt 0:0:3]} Qe7 {[%emt 0:0:0]} 28. Rf2 {[%emt 0:0:24]} Kg7 {[%emt 0:0:30]} 29. Re2 {[%emt 0:3:40]} Qf7 {[%emt 0:1:18]} 30. Qb4 {[%emt 0:0:45]} Ng6 {[%emt 0:0:27]} 31. d5 {[%emt 0:0:6]
} exd5 {[%emt 0:0:23]} 32. Nd4 {[%emt 0:0:3]} Re8 {[%emt 0:0:0]} 33. Nf5+ {[%emt 0:0:50]} Kh7 {[%emt 0:0:15]} 34. Rxe8 {[%emt 0:0:33]} Qxe8 {[%emt 0:0:2]} 35. Qd4 {[%emt 0:0:20]} Qf7 {[%emt 0:0:19]} 36. Ne3 {[%emt 0:0:14]
} Ne7 {[%emt 0:0:1]} 37. Qd3+ {[%emt 0:0:31]} Kg8 {[%emt 0:0:0]} 38. Ng4 {[%emt 0:0:2]} Kg7 {[%emt 0:0:20]} 39. Qd4+ {[%emt 0:0:5]} Kh7 {[%emt 0:0:12]} 40. Ne5 {[%emt 0:0:14]} Qf6 {[%emt 0:0:12]} 41. Qd3+ {[%emt 0:0:5]
} Kg7 {[%emt 0:0:8]} 42. Qd4 {[%emt 0:1:4]} Kg8 {[%emt 0:0:0]} 43. a4 {[%emt 0:0:24]} Qd6 {[%emt 0:0:8]} 44. c4 {[%emt 0:1:2]} Nxc6 {[%emt 0:0:1]} 45. Nxc6 {[%emt 0:0:3]} Qxc6 {[%emt 0:0:1]} 46. Qxd5+ {[%emt 0:0:21]
} Qxd5 {[%emt 0:0:6]} 47. cxd5 {[%emt 0:0:1]} Kf7 {[%emt 0:0:0]} 48. Kf2 {[%emt 0:0:2]} Kf6 {[%emt 0:0:0]} 49. Ke3 {[%emt 0:0:1]} Ke5 {[%emt 0:0:1]} 50. g4 {[%emt 0:0:17]} Kxd5 {[%emt 0:0:2]} 51. g3 {[%emt 0:0:3]
} c5 {[%emt 0:0:0]} 52. Kd3 {[%emt 0:0:3]} c4+ {[%emt 0:0:0]} 53. Kc3 {[%emt 0:0:2]} Kc5 {[%emt 0:0:40]} 54. h4 {[%emt 0:0:3]} Kd5 {[%emt 0:0:5]} 55. Kb4 {[%emt 0:0:9]} Kd4 {[%emt 0:0:4]} 0-1